Cogmind - Beta 14 @@@ ROGUE MODE // 2024.11.13 @ 12:14:47 Player: hanna Result: Destroyed by G-50 Soldier with Heavy Laser Performance ------------- Evolutions (4) 2000 Regions Visited (8) 1600 Robots Destroyed (64) 320 Value Destroyed (2627) 2627 Prototype IDs (2) 40 Alien Tech Used (0) 0 Bonus (1327) 1327 TOTAL SCORE: 7914 Bonus ------- High Alert Combat Kills 174 Follower Combat Kills 453 Entered Garrisons 200 Used RIF Installer 500 Cogmind --------- Core Integrity 0/850 Matter 123/500 Energy 24/100 System Corruption 3% Temperature Cool (9) Movement Core (150) Ox2 Location -6/Factory Parts ------- > --- POWER (2) -------- (None) > --- PROPULSION (2) --- (None) > --- UTILITY (9) ------ High-capacity Matter Pod Relay Coupler [Grunt] (31) > --- WEAPON (2) ------- Cooled Pulse Rifle > --- INVENTORY (5) ---- (None) Peak State ------------ > --- POWER ------------ Improved Ion Engine Reinforced Ion Engine > --- PROPULSION ------- Aluminum Leg Aluminum Leg > --- UTILITY ---------- Small Storage Unit High-capacity Matter Pod Visual Processing Unit Improved Shield Generator Relay Coupler [Grunt] Improved Field Recycling Unit > --- WEAPON ----------- Phase Cannon Flak Cannon > --- INVENTORY -------- Reinforced Ion Engine Aluminum Leg Aluminum Leg Enhanced Autogun Enhanced Autogun [Rating: 30] Favorites ----------- Power Reinforced Ion Engine Engine Reinforced Ion Engine Power Core Light Nuclear Core Propulsion Aluminum Leg Leg Aluminum Leg Hover Unit Gravmag System Utility Small Storage Unit Device Heat Sink Storage Small Storage Unit Processor Visual Processing Unit Hackware Relay Coupler [Grunt] Protection Improved Light Armor Plating Weapon Enhanced Autogun Energy Gun Particle Gun Energy Cannon Phase Cannon Ballistic Gun Enhanced Autogun Ballistic Cannon Flak Cannon Launcher Missile Launcher Build | -11 -10 -10 -9 -9 -9 -9 -9 -6 ------- Run | Yrd Mat Min Mat Sto Gar Rec Scr Fac Slots Evolved 8 | . . . 2 . . . . 6 Power 1 | . . . . . . . . 1 Propulsion . | . . . . . . . . . Utility 7 | . . . 2 . . . . 5 Weapon . | . . . . . . . . . Parts Attached 60 | 6 3 6 16 8 2 . 1 18 Power 10 | 1 1 1 3 1 1 . . 2 Engine 7 | 1 . . 2 1 1 . . 2 Core 3 | . 1 1 1 . . . . . Reactor . | . . . . . . . . . Propulsion 16 | 2 1 2 3 2 1 . . 5 Treads . | . . . . . . . . . Leg 15 | 2 1 2 3 2 1 . . 4 Wheel . | . . . . . . . . . Hover 1 | . . . . . . . . 1 Flight . | . . . . . . . . . Utility 12 | 1 . 1 3 3 . . 1 3 Device 5 | . . 1 1 1 . . . 2 Storage 3 | 1 . . 1 . . . . 1 Processor 1 | . . . . 1 . . . . Hackware 1 | . . . . . . . 1 . Protection 2 | . . . 1 1 . . . . Artifact . | . . . . . . . . . Weapon 22 | 2 1 2 7 2 . . . 8 Energy Gun 3 | . 1 . . . . . . 2 Energy Cannon 2 | . . . . . . . . 2 Ballistic Gun 13 | 2 . 2 6 1 . . . 2 Ballistic Cannon 1 | . . . . . . . . 1 Launcher 3 | . . . 1 1 . . . 1 Special Weapon . | . . . . . . . . . Impact Weapon . | . . . . . . . . . Slashing Weapon . | . . . . . . . . . Piercing Weapon . | . . . . . . . . . Special Melee Weapon . | . . . . . . . . . Unidentified Prototypes 2 | . . . 1 . . . . 1 Corrupted Parts 1 | . . . . . . . . 1 System Corruption 3 | . . . . . . . . 3 Parts Lost 25 | . . 2 5 2 1 . . 15 Power 3 | . . . 1 . . . . 2 Propulsion 9 | . . 2 1 1 . . . 5 Utility 7 | . . . 2 1 1 . . 3 Weapon 6 | . . . 1 . . . . 5 Highest Loss Streak 13 | . . 1 3 1 1 . . 13 To Critical Strikes . | . . . . . . . . . Average Slot Usage (%) 88 | . 85 75 96 94 97 88 93 62 Engine 8 | . 11 . 3 11 11 11 11 8 Core 2 | . 2 14 7 . . . . . Leg 20 | . 28 16 21 21 22 22 22 11 Device 3 | . . 2 19 3 . . . 7 Storage 12 | . 14 14 17 11 11 11 11 11 Processor 6 | . . . . 5 11 11 11 5 Hackware 2 | . . . . . . . 5 6 Protection 10 | . . . 4 19 19 11 11 1 Ballistic Gun 20 | . 27 26 21 19 22 22 22 2 Peak Build Rating 30 | 6 9 9 20 21 21 20 23 30 Average Rating 17 | 4 6 7 14 19 20 20 21 22 On Entrance 13 | . 6 9 9 18 20 20 20 23 Naked Turns . | . . . . . . . . . Heaviest Build 56 | 14 15 15 26 31 24 24 24 56 Greatest Support 23 | 20 20 20 23 23 23 23 23 23 Greatest Overweight (x) 9 | . . 4 2 1 1 1 1 9 Average Overweight (x) . | . . . . 1 . 1 1 1 Largest Inventory Capacity 8 | 8 8 8 8 8 8 8 8 8 Average Capacity 7 | 6 8 8 8 8 8 8 8 7 Most Carried 8 | 3 5 7 7 8 7 7 7 8 Average Carried 5 | 1 2 4 4 6 5 7 6 6 Final Capacity 8 | 8 8 8 8 8 8 8 8 5 Final Carried 7 | 2 5 4 4 4 7 7 6 . Class Distribution -------------------- 59% | Scavenger-Mutant 20% | Mutant 20% | Commander-Mutant Dominant Class ---------------- Mutant | -10/Materials Mutant | -10/Mines Scavenger-Mutant | -9/Materials Scavenger-Mutant | -9/Storage Commander-Mutant | -9/Garrison Scavenger-Mutant | -9/Recycling Scavenger-Mutant | -9/Scraptown Scavenger-Mutant | -6/Factory Resources | -11 -10 -10 -9 -9 -9 -9 -9 -6 ----------- Run | Yrd Mat Min Mat Sto Gar Rec Scr Fac Matter Collected 1698 | 232 232 101 411 417 257 . 8 40 Remotely . | . . . . . . . . . Salvage Created 2185 | . 275 118 722 540 366 . . 164 Parts 161 | . 19 11 46 43 35 . . 7 Haulers Intercepted 3 | . 1 . 1 1 . . . . Recyclers Shooed 3 | . 1 . 2 . . . . . Parts Field Recycled 2 | . . . . . . . . 2 Retrieved Matter 51 | . . . . . . . . 51 Parts Self-Destructed . | . . . . . . . . . Prevented . | . . . . . . . . . Kills | -11 -10 -10 -9 -9 -9 -9 -9 -6 ------- Run | Yrd Mat Min Mat Sto Gar Rec Scr Fac Combat Hostiles Destroyed 50 | . 7 5 14 11 10 . . 3 Guns 42 | . 7 5 11 8 10 . . 1 Cannons 2 | . . . . . . . . 2 AOE 6 | . . . 3 3 . . . . Classes Destroyed 10 | . 3 . 5 1 1 . . . Worker 2 | . . . 1 1 . . . . Builder 5 | . . . 2 1 . . . 2 Hauler 3 | . 1 . 1 1 . . . . Recycler 1 | . . . . 1 . . . . Watcher 3 | . . . 2 1 . . . . Swarmer 12 | . 3 3 . 3 3 . . . Grunt 22 | . 4 2 9 1 5 . . 1 Brawler 2 | . . . . . 1 . . 1 Duelist 2 | . . . 1 . . . . 1 Sentry 12 | . . . 4 7 1 . . . Best Kill Streak 5 | . 4 3 5 5 3 . . 4 Combat Bots Only 5 | . 4 3 4 5 3 . . 1 Max Kills in Single Turn 3 | . 1 1 3 2 2 . . 1 Gunslinging 1 | . . . . . 1 . . . Exploded 3 | . . . 3 2 . . . . Melee . | . . . . . . . . . Uniques/NPCs Destroyed . | . . . . . . . . . Combat | -11 -10 -10 -9 -9 -9 -9 -9 -6 -------- Run | Yrd Mat Min Mat Sto Gar Rec Scr Fac Hostile Shots Fired 391 | . 36 59 77 49 20 . . 150 Missed 99 | . 14 11 20 12 8 . . 34 Damage Taken 4503 | . 277 439 803 544 185 . . 2255 Core 1173 | . 81 93 62 63 6 . . 868 Absorbed by Shields 175 | . . . . . . . . 175 Core Remaining (%) 65 | 100 . 30 . . . . 67 . Volleys Fired 186 | . 24 16 47 43 30 . . 26 Largest 2 | . 2 2 2 2 2 . . 2 Hottest 129 | . 40 85 50 50 50 . . 129 Shots Fired 331 | . 48 32 86 70 60 . . 35 Gun 294 | . 48 32 85 62 60 . . 7 Cannon 26 | . . . . . . . . 26 Launcher 11 | . . . 1 8 . . . 2 Special . | . . . . . . . . . Kinetic 299 | . 48 25 85 62 60 . . 19 Thermal 21 | . . 7 . . . . . 14 Explosive 11 | . . . 1 8 . . . 2 Electromagnetic . | . . . . . . . . . Robot Hit Streak 15 | . 5 9 15 15 7 . . 6 Robot Miss Streak 5 | . 3 5 2 4 2 . . 4 Penetration Max . | . . . . . . . . . Secondary Targets 8 | . 2 2 1 . 3 . . . Max Gunslinging Chain 1 | . 1 1 1 . 1 . . . Shots Hit Robots 205 | . 29 19 59 42 31 . . 25 Core Hits 115 | . 14 8 31 26 13 . . 23 Critical Kills 1 | . . . 1 . . . . . Critical Parts Destroyed . | . . . . . . . . . Critical Strikes 1 | . . . 1 . . . . . Destroy 1 | . . . 1 . . . . . Melee Attacks . | . . . . . . . . . Impact . | . . . . . . . . . Slashing . | . . . . . . . . . Piercing . | . . . . . . . . . Sneak Attacks . | . . . . . . . . . Combat Hostiles . | . . . . . . . . . Follow-up Attacks . | . . . . . . . . . Damage Inflicted 3949 | . 370 255 1143 1027 532 . . 622 Guns 2893 | . 370 255 932 690 532 . . 114 Cannons 388 | . . . . . . . . 388 Explosions 668 | . . . 211 337 . . . 120 Melee . | . . . . . . . . . Ramming . | . . . . . . . . . Kinetic 3077 | . 370 211 932 690 532 . . 342 Thermal 204 | . . 44 . . . . . 160 Explosive 614 | . . . 211 337 . . . 66 Electromagnetic 54 | . . . . . . . . 54 Impact . | . . . . . . . . . Slashing . | . . . . . . . . . Piercing . | . . . . . . . . . Highest Corruption 3 | . . . . . . . . 3 Average Corruption 3 | . . . . . . . . 3 Corruption Purged . | . . . . . . . . . Corruption Blocked . | . . . . . . . . . Overload Shots . | . . . . . . . . . Overflow Damage 6 | . . . 1 5 . . . . Projectiles . | . . . . . . . . . Explosions 6 | . . . 1 5 . . . . Melee . | . . . . . . . . . Knockbacks 10 | . . . . . . . . 10 Impact . | . . . . . . . . . Kinetic 10 | . . . . . . . . 10 Secondary . | . . . . . . . . . Self-Inflicted Damage 24 | . . . . 24 . . . . Shots 1 | . . . . 1 . . . . Rammed . | . . . . . . . . . Targets Rammed . | . . . . . . . . . Kicked . | . . . . . . . . . Crushed . | . . . . . . . . . Highest Temperature 298 | . 2 178 74 82 123 . . 298 Average Temperature 53 | . 2 73 39 25 39 . . 107 Received Heat Transfer 1566 | . 120 90 318 144 99 . . 795 Siege Activations . | . . . . . . . . . Robots Corrupted . | . . . . . . . . . Combat Hostiles . | . . . . . . . . . Parts Fried . | . . . . . . . . . Impact Corruptions . | . . . . . . . . . Robots Melted . | . . . . . . . . . Combat Hostiles . | . . . . . . . . . Parts Melted 1 | . . . . . . . . 1 Heat Transferred 333 | . . 111 . . . . . 222 Parts Sabotaged . | . . . . . . . . . Parts Stolen . | . . . . . . . . . Parts Stripped . | . . . . . . . . . Power Chain Reactions 1 | . . . . . . . . 1 Alert | -11 -10 -10 -9 -9 -9 -9 -9 -6 ------- Run | Yrd Mat Min Mat Sto Gar Rec Scr Fac Peak Influence 1159 | . 195 220 354 577 1159 521 . 140 Initial 521 | . . 75 7 109 375 521 . . Average 381 | . 99 150 172 389 877 521 . 9 Maximum Alert Level 4 | . . 1 1 2 4 2 . . Low Security (%) 46 | 100 100 95 59 7 . . . 100 Level 1 15 | . . 4 40 41 7 . . . Level 2 14 | . . . . 51 10 100 . . Level 3 19 | . . . . . 70 . . . Level 4 3 | . . . . . 11 . . . Level 5 . | . . . . . . . . . High Security . | . . . . . . . . . Max Security . | . . . . . . . . . Squads Dispatched 3 | . . . . 3 . . . . Investigation 1 | . . . . 1 . . . . Extermination . | . . . . . . . . . Reinforcement 1 | . . . . 1 . . . . Assault . | . . . . . . . . . Garrison 1 | . . . . 1 . . . . Intercept . | . . . . . . . . . Searches Triggered . | . . . . . . . . . Construction Impeded . | . . . . . . . . . Haulers Reinforced . | . . . . . . . . . Active Scanning Responses . | . . . . . . . . . Cargo Convoy Interrupts . | . . . . . . . . . Stealth | -11 -10 -10 -9 -9 -9 -9 -9 -6 --------- Run | Yrd Mat Min Mat Sto Gar Rec Scr Fac Distress Signals 5 | . . . 2 2 . . . 1 Communications Jammed . | . . . . . . . . . Distress Signals . | . . . . . . . . . Times Spotted 81 | . 7 6 19 17 23 . . 9 Peak Tracking Total 6 | . 3 3 5 3 6 . . 5 Tactical Retreats 3 | . . 1 2 . . . . . Traps | -11 -10 -10 -9 -9 -9 -9 -9 -6 ------- Run | Yrd Mat Min Mat Sto Gar Rec Scr Fac Traps Triggered 5 | . . . . 2 2 . . 1 Indirectly 1 | . . . . . . . . 1 Trap Hack Attempts . | . . . . . . . . . Triggered . | . . . . . . . . . Disarmed . | . . . . . . . . . Reprogrammed . | . . . . . . . . . Reused . | . . . . . . . . . Traps Extracted . | . . . . . . . . . Installed . | . . . . . . . . . Triggered . | . . . . . . . . . Machines | -11 -10 -10 -9 -9 -9 -9 -9 -6 ---------- Run | Yrd Mat Min Mat Sto Gar Rec Scr Fac Machines Disabled 11 | . . . . 1 4 . . 6 Max in Single Turn 4 | . . . . 1 1 . . 4 Garrison Relay 4 | . . . . . 4 . . . Machines Repaired . | . . . . . . . . . Machines Dismantled . | . . . . . . . . . Machines Sabotaged . | . . . . . . . . . Overloaded Fab Kills . | . . . . . . . . . Hacking | -11 -10 -10 -9 -9 -9 -9 -9 -6 --------- Run | Yrd Mat Min Mat Sto Gar Rec Scr Fac Machines Accessed 5 | . . . . 1 . 1 3 . Terminals . | . . . . . . . . . Fabricators . | . . . . . . . . . Repair Stations . | . . . . . . . . . Recycling Units . | . . . . . . . . . Scanalyzers . | . . . . . . . . . Garrison Access 1 | . . . . 1 . . . . Total Hacks 15 | . . . . 1 . 3 11 . Successful 15 | . . . . 1 . 3 11 . Failed . | . . . . . . . . . Catastrophic . | . . . . . . . . . Database Lockouts . | . . . . . . . . . Manual . | . . . . . . . . . Terminals . | . . . . . . . . . Fabricators . | . . . . . . . . . Repair Stations . | . . . . . . . . . Recycling Units . | . . . . . . . . . Scanalyzers . | . . . . . . . . . Garrison Access 1 | . . . . 1 . . . . Terminal Hacks 14 | . . . . . . 3 11 . Record 13 | . . . . . . 2 11 . Release Object 1 | . . . . . . 1 . . Fabricator Hacks . | . . . . . . . . . Repair Station Hacks . | . . . . . . . . . Recycling Unit Hacks . | . . . . . . . . . Scanalyzer . | . . . . . . . . . Garrison Access Hacks 1 | . . . . 1 . . . . Unlock Access 1 | . . . . 1 . . . . Unauthorized Hacks . | . . . . . . . . . Terminals . | . . . . . . . . . Fabricators . | . . . . . . . . . Repair Stations . | . . . . . . . . . Recycling Units . | . . . . . . . . . Scanalyzers . | . . . . . . . . . Garrison Access . | . . . . . . . . . Data Cores Recovered . | . . . . . . . . . Used . | . . . . . . . . . Hacking Detections . | . . . . . . . . . Full Trace Events . | . . . . . . . . . Feedback Events . | . . . . . . . . . Feedback Blocked . | . . . . . . . . . Robot Schematics Acquired . | . . . . . . . . . Robots Built . | . . . . . . . . . Authchips . | . . . . . . . . . Time . | . . . . . . . . . Total Robot Build Rating . | . . . . . . . . . Part Schematics Acquired . | . . . . . . . . . Parts Built . | . . . . . . . . . Authchips . | . . . . . . . . . Time . | . . . . . . . . . Total Part Build Rating . | . . . . . . . . . Parts Repaired . | . . . . . . . . . Time . | . . . . . . . . . Parts Recycled . | . . . . . . . . . Recycled Matter . | . . . . . . . . . Retrieved Matter . | . . . . . . . . . Retrieved Components . | . . . . . . . . . Parts Scanalyzed . | . . . . . . . . . Part Schematics Acquired . | . . . . . . . . . Parts Damaged . | . . . . . . . . . Bothacking | -11 -10 -10 -9 -9 -9 -9 -9 -6 ------------ Run | Yrd Mat Min Mat Sto Gar Rec Scr Fac Used RIF Installer 1 | . . . . . 1 . . . Robots Hacked . | . . . . . . . . . Non-combat . | . . . . . . . . . Combat . | . . . . . . . . . Robot Hacks Applied . | . . . . . . . . . Relay Couplers Released 18 | . . . . . 18 . . . Machine Destruction 18 | . . . . . 18 . . . Attached 1 | . . . . . . . 1 . Fabnet Peak Effective % . | . . . . . . . . . Robots Rewired . | . . . . . . . . . Allies Hacked . | . . . . . . . . . Hacks Repelled . | . . . . . . . . . Allies | -11 -10 -10 -9 -9 -9 -9 -9 -6 -------- Run | Yrd Mat Min Mat Sto Gar Rec Scr Fac Total Allies 10 | . . . . 10 . . . . Largest Group 10 | . . . . 10 10 1 1 1 Highest-Rated Group 88 | . . . . 88 88 8 8 8 Highest-Rated Ally 16 | . . . . 16 16 8 8 8 Total Orders . | . . . . . . . . . Ally Attacks 166 | . . . . 41 109 . . 16 Total Damage 1552 | . . . . 351 1092 . . 109 Kills 26 | . . . . 7 19 . . . Allies Corrupted . | . . . . . . . . . Allies Melted . | . . . . . . . . . Intel | -11 -10 -10 -9 -9 -9 -9 -9 -6 ------- Run | Yrd Mat Min Mat Sto Gar Rec Scr Fac Robot Analysis Total . | . . . . . . . . . Derelict Logs Recovered 2 | . . 2 . . . . . . Drone Launches . | . . . . . . . . . Drone Recoveries . | . . . . . . . . . Exploration | -11 -10 -10 -9 -9 -9 -9 -9 -6 ------------- Run | Yrd Mat Min Mat Sto Gar Rec Scr Fac Turns Passed 4612 | 61 205 465 547 542 958 94 1229 511 Spaces Moved 2104 | 43 103 218 197 214 450 50 647 182 Core 12 | 6 . 2 . . . . . 4 Treads . | . . . . . . . . . Legs 2092 | 37 103 216 197 214 450 50 647 178 Wheels . | . . . . . . . . . Hover . | . . . . . . . . . Flight . | . . . . . . . . . Fastest Speed 50 | 50 120 120 120 190 120 190 190 100 Average Speed 180 | 110 120 167 149 190 189 190 190 212 Slowest Speed 500 | 120 120 250 260 190 190 190 190 500 Overloaded Moves . | . . . . . . . . . Propulsion Burnouts . | . . . . . . . . . Robots Hopped . | . . . . . . . . . Cave-ins Triggered . | . . . . . . . . . Exploration Rate (%) 30 | 3 25 53 29 48 51 9 45 7 Regions Visited 8 Branch Regions 4 Pre-discovered Areas 1 | . . 1 . . . . . . Known Exits Taken 2 | . . . 1 1 . . . . Unknown Exits Taken 5 | 1 1 1 . . . 1 1 . Scrap Searched 2 | . . . . . . . 2 . Spaces Dug . | . . . . . . . . . Terrain Destroyed 89 | . . . 15 63 . . . 11 Melee . | . . . . . . . . . Projectile 4 | . . . . . . . . 4 AOE 85 | . . . 15 63 . . . 7 Terrain Rammed . | . . . . . . . . . Walls Destroyed . | . . . . . . . . . Machines Disabled . | . . . . . . . . . Actions | -11 -10 -10 -9 -9 -9 -9 -9 -6 --------- Run | Yrd Mat Min Mat Sto Gar Rec Scr Fac Total 2642 | 56 136 286 372 303 521 49 647 272 Wait 217 | . . 41 88 28 25 . . 35 Move 2095 | 42 102 217 196 213 448 49 646 182 Hop . | . . . . . . . . . Pick Up 55 | 8 5 4 16 7 7 . . 8 Fast Attach . | . . . . . . . . . Attach 34 | 6 . 3 7 3 . . 1 14 Detach 1 | . . . . . . . . 1 Swap 26 | . 3 3 9 5 2 . . 4 Drop 23 | . 2 2 9 4 4 . . 2 Fire 186 | . 24 16 47 43 30 . . 26 Melee . | . . . . . . . . . Ram . | . . . . . . . . . Kick . | . . . . . . . . . Crush . | . . . . . . . . . Escape Stasis 5 | . . . . . 5 . . . Rewire . | . . . . . . . . . Trap . | . . . . . . . . . Miscellaneous . | . . . . . . . . . Route ------- -11/Scrapyard -10/Materials -10/Mines -9/Materials (discovered 3 exits: Min / *Sto x2) -9/Storage -9/Garrison (discovered 2 exits: *Rec x2) -9/Recycling -9/Scraptown -6/Factory History --------- Turn | Location | Event 10 | -11/Scrapyard | Discovered new exit (range 16) 62 | -11/Scrapyard | Entered Materials 179 | -10/Materials | Discovered new exit (range 9) 267 | -10/Materials | Entered Mines 272 | -10/Mines | Learned 4 Materials zone layouts 354 | -10/Mines | Build established: Mutant 415 | -10/Mines | Learned location of Zion (-6) 644 | -10/Mines | Core integrity fell below 50% 725 | -10/Mines | Discovered new exit (range 7) 732 | -10/Mines | Entered Materials 732 | -9/Materials | Evolved 2 slots: Utility x2 733 | -9/Materials | Identified exit to Mines 733 | -9/Materials | Identified exit to Storage 883 | -9/Materials | Discovered exit to Storage (range 16) 967 | -9/Materials | Build established: Scavenger-Mutant 1222 | -9/Materials | Lost 3 parts (1p1n1u) 1279 | -9/Materials | Entered Storage 1627 | -9/Storage | Assisted by bots powering up and referring to "LRC-V3" 1760 | -9/Storage | Garrison activated, responded to threat 1812 | -9/Storage | Identified exit to Garrison 1821 | -9/Storage | Entered Garrison 1821 | -9/Garrison | Accompanied by 10 allies 1879 | -9/Garrison | Triggered checkpoint 1889 | -9/Garrison | Triggered checkpoint 1905 | -9/Garrison | Triggered checkpoint 1908 | -9/Garrison | Triggered checkpoint 1941 | -9/Garrison | Build established: Commander-Mutant 1943 | -9/Garrison | Lost 3 allies 1981 | -9/Garrison | Triggered checkpoint 2039 | -9/Garrison | Garrison Relay disabled 2134 | -9/Garrison | Discovered new exit (range 11) 2175 | -9/Garrison | Triggered checkpoint 2217 | -9/Garrison | Garrison Relay disabled 2255 | -9/Garrison | Triggered checkpoint 2268 | -9/Garrison | Garrison Relay disabled 2489 | -9/Garrison | Discovered new exit (range 14) 2511 | -9/Garrison | Installed Relay Interface Framework 2541 | -9/Garrison | Triggered checkpoint 2595 | -9/Garrison | Lost 5 allies 2667 | -9/Garrison | Triggered checkpoint 2694 | -9/Garrison | Garrison Relay disabled 2779 | -9/Garrison | Entered Recycling 2779 | -9/Recycling | Accompanied by 1 ally 2780 | -9/Recycling | Met a Zionite searching for Scraptown 2797 | -9/Recycling | Scanned before Scraplab entrance 2823 | -9/Recycling | Entered Scraplab 2843 | -9/Recycling | Build established: Scavenger-Mutant 2869 | -9/Recycling | Discovered new exit (range 2) 2873 | -9/Recycling | Entered Scraptown 2873 | -9/Scraptown | Accompanied by 1 ally 3229 | -9/Scraptown | Visited Fellowship of the Rings 3293 | -9/Scraptown | Visited Spacefarers 3398 | -9/Scraptown | Visited Cyclists 3500 | -9/Scraptown | Visited Red Mages 3612 | -9/Scraptown | Turned away by UFD registrar 3640 | -9/Scraptown | Visited The Evicted 3710 | -9/Scraptown | Visited Symbiants 3830 | -9/Scraptown | Discovered new exit (range 5) 4102 | -9/Scraptown | Entered Factory 4102 | -6/Factory | Accompanied by 1 ally 4102 | -6/Factory | Evolved 6 slots: Power x1, Utility x5 4575 | -6/Factory | Core integrity fell below 50% 4596 | -6/Factory | Core integrity fell below 20% 4613 | -6/Factory | Destroyed by G-50 Soldier with Heavy Laser Last Messages --------------- Gravmag System destroyed. U-05 Engineer lays Concrete. K-01 Serf collects debris. Aluminum Leg destroyed. U-05 Engineer lays Concrete. K-01 Serf collects debris. U-05 Engineer lays Concrete. Cld. Pulse Rifle destroyed. Critical hit (Burn: +37). K-01 Serf collects debris. U-05 Engineer lays Concrete. Acquired Cld. Pulse Rifle. U-05 Engineer lays Concrete. K-01 Serf collects debris. U-05 Engineer lays Concrete. K-01 Serf collects debris. U-05 Engineer lays Concrete. K-01 Serf collects debris. U-05 Engineer lays Concrete. K-01 Serf collects debris. Map ----- +----------------------------------------------------+ | ??????????????????????? #??????????????????? | | ??????????????????????? #??????????????????? | | #######???????????????? #??????????????????? | | #???????????????? #??????????????????? | | #???????????????? #??????????????????? | | #???????????????? +??????????????????? | | #???????????????? #??????????????????? | | #???????????????? #?????? ???????????? | | # #???????????????? #????? ??????????? | | # ################## #######" ??????????? | | # ?????????? | | # % ?????????? | | # ?????????? | | # u % ????????? | | # ?????????? | | ##################### #??????????????? | | ????????############## #??????????????? | | ????????# ! #??????????????? | | ????????# k R #??????????????? | | ????????# # #??????????????? | | ???????## ;!! #??????????????? | | ???????#" #!!k #??????????????? | | ???????## #!!g #??????????????? | | ????????# # g% #??????????????? | | ????????# # = "" #??????????????? | | ????????# g @= "F"" #??????????????? | | ????????# # [= """" #??????????????? | | ????????# # #??????????????? | | ????????# # ! #??????????????? | | ????????########"############ #??????????????? | | ???????????????# ???????????? R#??????????????? | | ???????????????# ???????????? ?????????????? | | ???????????????#?????????????? ???????????? | | ??????????????????????????????? ???????????? | | ???????????????????????????????? ???????????? | | ????????????????????????????????? R ????????????? | | ??????????????????????????????????###????????????? | | ?????????????????????????????????????????????????? | | ?????????????????????????????????????????????????? | | ?????????????????????????????????????????????????? | | ?????????????????????????????????????????????????? | | ?????????????????????????????????????????????????? | | ?????????????????????????????????????????????????? | | ?????????????????????????????????????????????????? | | ?????????????????????????????????????????????????? | | ?????????????????????????????????????????????????? | | ?????????????????????????????????????????????????? | | ?????????????????????????????????????????????????? | | ?????????????????????????????????????????????????? | | ?????????????????????????????????????????????????? | +----------------------------------------------------+ Best States ------------- Heat Dissipation 38 Energy Generation 19 Energy Capacity 430 Matter Stores 350 Matter Capacity 500 Sight Range 18 Robot Scan Range 14 Terrain Scan Density 10 Armor Coverage 300 Evasion (%) 55 Relay Coupler Types 1 Relay Coupler Value 31 Item Schematics ----------------- None Robot Schematics ------------------ None Fabricated ------------ Nothing Alien Tech Used ----------------- None Achievements -------------- None Challenges ------------ None Game ------ Seed ChipMultinovaMagmablaster Manual? 0 Play Time 00:41:56 Cumulative 24.0 hours Start 2024.11.13 @ 11:34:59 End 2024.11.13 @ 12:14:47 Sessions 1 Manual Loads 0 Difficulty Rogue Special Mode None Game No. 43 Rogue 43 Adventurer 0 Explorer 0 Win Type - Total 0 Types 0/0/0/0/0/0/0/0/0 Lore% 15 Gallery% 23 Achievement% 19 Wizard Run 0 Options --------- Layout 1 ASCII 0 Keyboard 0 Movement Mouse Keybinds 0 Fullscreen 1 Font 24/Terminus Map View 50x35 Zoom Use 0% Tactical HUD 0 Map Filters NONE Filters NONE Steam 1 RUN: 78e40220-9779-45a3-9d30-29b5d46e5a72